[Event "37th Belgrade Trophy 2024"]
[Site "Belgrade"]
[Date "2024.11.24"]
[Round "2.3"]
[White "Atalik, Suat"]
[Black "Xie, Jiaxiang"]
[Result "1/2-1/2"]
[ECO "A90"]
[WhiteElo "2420"]
[BlackElo "1949"]
[Annotator "TA"]
[PlyCount "71"]
[EventDate "2024.11.23"]
[EventCountry "SRB"]
[SourceTitle "playchess.com"]
[Source "ChessBase"]
[SourceQuality "1"]
[TimeControl "40/5400+30:900+30"]

{[%evp 14,71,35,26,62,27,30,23,38,47,58,66,52,49,41,37,54,19,82,72,65,51,66,70,68,58,53,41,38,39,39,35,33,0,0,0,0,0,0,0,0,0,0,0,21,17,23,18,29,0,0,0,0,-47,-52,-31,0,0,0,-37]} 1. d4 {[%emt 0:00:04]} f5 {[%emt 0:00:41]} 2. g3 {[%emt 0:01:45]} Nf6 {[%emt 0:00:13]} 3. Bg2 {[%emt 0:00:06]} d5 {[%emt 0:00:12]} 4. Nh3 {[%emt 0:03:34]} e6 {[%emt 0:00:33]} 5. O-O {[%emt 0:00:49]} Bd6 {[%emt 0:00:47]} 6. c4 {[%emt 0:01:44]} c6 {[%emt 0:00:09]} 7. Qc2 {[%emt 0:01:15]} O-O {[%emt 0:00:24]} 8. Bf4 {[%emt 0:00:26]} Ne4 {[%emt 0:02:24]} 9. f3 {[%emt 0:03:16]} Bxf4 {[%emt 0:00:36]} 10. Nxf4 {[%emt 0:00:07]} Nd6 {[%emt 0:00:09] White has an edge.} 11. Nd2 {[%emt 0:00:49]} b6 {[%emt 0:05:05]} 12. e3 {[%emt 0:05:00]} Qf6 {[%emt 0:01:31]} 13. Nd3 {[%emt 0:04:49]} Bb7 {[%emt 0:02:50]} 14. Qc3 {[%emt 0:06:12]} Nf7 {[%emt 0:04:29]} 15. e4 {[%emt 0:04:24]} Nd7 {[%emt 0:11:54]} (15... dxc4 $11 {remains equal.} 16. e5 (16. Nxc4 c5 $11) 16... Qe7 17. Qxc4 (17. Nxc4 Na6 $11) 17... Qd7) 16. exf5 {[%emt 0:03:21]} exf5 {[%emt 0:01:26]} 17. Rfe1 {[%emt 0:00:21]} Rfe8 {[%emt 0:09:57]} 18. f4 {[%emt 0:00:56]} Qd6 {[%emt 0:03:24]} 19. Ne5 {[%emt 0:08:05] [#] cxd5 is the strong threat.} Nf6 {[%emt 0:05:31]} 20. cxd5 {[%emt 0:05:05]} cxd5 {[%emt 0:02:10]} 21. Ndc4 {[%emt 0:09:09]} Qc7 {[%emt 0:04:49]} 22. Nxf7 {[%emt 0:03:23]} Qxf7 {[%emt 0:04:15]} 23. Nd6 {[%emt 0:09:39]} Rxe1+ {[%emt 0:00:35]} 24. Qxe1 {[%emt 0:00:46]} (24. Rxe1 $5 Qd7 $8 25. Nxb7 Qxb7 26. a4 $17) 24... Qd7 {[%emt 0:02:19]} 25. Qe5 {[%emt 0:02:04][%cal Og2h3] aiming for Bh3!} Rd8 $1 {[%emt 0:03:31]} 26. Nxb7 {[%emt 0:00:46]} ({Of course not} 26. Nxf5 Re8 $17) 26... Re8 {[%emt 0:00:28][%cal Of6e4] [#] Strongly threatening ...Ne4!} 27. Qd6 {[%emt 0:00:14]} Qxb7 {[%emt 0:00:07]} 28. Rc1 {[%emt 0:00:51]} Re7 {[%emt 0:02:49]} 29. Bh3 {[%emt 0:01:43]} Ng4 {[%emt 0:11:18]} 30. Bxg4 {[%emt 0:00:19]} fxg4 $11 {[%emt 0:02:45][%mdl 4096] Endgame. KQR-KQR} 31. f5 {[%emt 0:01:37]} Qd7 {[%emt 0:06:22]} 32. Qf4 {[%emt 0:03:09]} Re4 {[%emt 0:02:14]} 33. Qb8+ {[%emt 0:12:15]} (33. Qg5 $11 {might be stronger.}) 33... Re8 $1 $15 {[%emt 0:00:07]} 34. Qf4 {[%emt 0:00:29]} Re4 {[%emt 0:00:05]} (34... Qe7 $5) 35. Qb8+ {[%emt 0:00:12]} Re8 {[%emt 0:00:05]} 36. Qf4 $1 {[%emt 0:00:04] Weighted Error Value: White=0.08 (flawless) /Black=0.10 (very precise) .  Mistake:       	White=1     	Black=1      Inaccurate:     	White=4     	---        OK:         	White=13    	Black=11     Best:        	White=1     	Black=1      Strong:       	White=1     	Black=2} 1/2-1/2

[Event "37th Belgrade Trophy 2024"]
[Site "Belgrade"]
[Date "2024.11.24"]
[Round "2.4"]
[White "Zhambalov, Bator"]
[Black "Stanojoski, Zvonko"]
[Result "0-1"]
[ECO "B30"]
[WhiteElo "1984"]
[BlackElo "2401"]
[Annotator "TA"]
[PlyCount "70"]
[EventDate "2024.11.23"]
[EventCountry "SRB"]
[SourceTitle "playchess.com"]
[Source "ChessBase"]
[SourceQuality "1"]
[TimeControl "40/5400+30:900+30"]

{[%evp 11,70,24,29,7,13,7,11,4,15,15,38,16,16,0,0,0,28,0,61,22,69,19,8,15,11,9,0,7,22,16,18,22,32,54,68,78,82,84,95,62,105,13,14,0,10,7,27,0,0,0,0,0,4,0,0,0,0,0,0,0,0]} 1. e4 {[%emt 0:08:18]} c5 {[%emt 0:00:24]} 2. Nf3 {[%emt 0:00:06]} Nc6 {[%emt 0:00:08]} 3. Bb5 {[%emt 0:09:49]} Nf6 {[%emt 0:00:19][%cal Bg8f6,Bf6d5,Bd5c7,Bc7e6][%mdl 32]} 4. e5 {[%emt 0:05:18]} Nd5 {[%emt 0:00:14]} 5. O-O {[%emt 0:00:15]} Nc7 {[%emt 0:01:05]} 6. Bxc6 {[%emt 0:01:42]} dxc6 {[%emt 0:00:07]} 7. h3 {[%emt 0:00:37]} Ne6 {[%emt 0:02:42]} 8. d3 {[%emt 0:01:04]} g6 {[%emt 0:00:31]} 9. b3 {[%emt 0:01:29]} Bg7 {[%emt 0:00:30]} 10. Bb2 {[%emt 0:00:06]} b6 {[%emt 0:06:17]} 11. Nbd2 {[%emt 0:02:24]} O-O {[%emt 0:00:39]} 12. Ne4 {[%emt 0:01:32]} a5 {[%emt 0:01:30]} 13. a4 {[%emt 0:01:35]} Qd5 {[%emt 0:04:31]} 14. Re1 {[%emt 0:04:24]} h6 {[%emt 0:03:47]} ({Black should play} 14... Nd4 $11) 15. Qd2 {[%emt 0:03:50][%cal Oe4d6]} (15. Nd6 $5) 15... Kh7 {[%emt 0:05:14]} (15... Nd4 $11) 16. Rad1 {[%emt 0:07:00]} ({Better is} 16. Nd6 $14) 16... Nd4 $11 {[%emt 0:05:00]} 17. Nxd4 {[%emt 0:04:52]} cxd4 {[%emt 0:00:12]} 18. f4 {[%emt 0:00:19]} c5 {[%emt 0:00:38]} 19. Qf2 {[%emt 0:01:53]} Bb7 {[%emt 0:04:39]} 20. Bc1 {[%emt 0:03:41]} f5 {[%emt 0:04:56]} 21. exf6 {[%emt 0:12:04]} exf6 {[%emt 0:00:42] [#]} 22. f5 $1 {[%emt 0:07:14] Hoping for fxg6+.} gxf5 {[%emt 0:01:32]} (22... g5 23. Nd2) 23. Ng3 {[%emt 0:00:22]} f4 {[%emt 0:01:56]} 24. Bxf4 {[%emt 0:01:47]} Rf7 {[%emt 0:00:42]} 25. Ne4 {[%emt 0:11:24]} Rd8 {[%emt 0:05:28] Prevents Nd6} 26. Nd2 {[%emt 0:01:38]} (26. Re2 $16) 26... Rg8 {[%emt 0:00:42][%cal Bd8g8,Bg8e8,Be8e7,Be7e5][%mdl 32] Threatens to win with ...Bh8.} 27. Kh2 {[%emt 0:02:44]} Bf8 {[%emt 0:00:46][%cal Rg8g2]} 28. g3 {[%emt 0:01:10]} Bd6 {[%emt 0:04:45]} 29. Bxd6 {[%emt 0:00:41]} Qxd6 {[%emt 0:00:03]} 30. Nc4 {[%emt 0:01:18]} Qc7 {[%emt 0:01:47]} 31. Rg1 {[%emt 0:01:37]} Re8 {[%emt 0:07:39]} 32. Rde1 {[%emt 0:02:09]} Rfe7 {[%emt 0:00:25]} 33. Rxe7+ {[%emt 0:01:29]} Rxe7 {[%emt 0:00:17]} 34. Rf1 {[%emt 0:01:03]} (34. Qxf6 {is a self mate.} Re2+) 34... Qc6 {[%emt 0:02:49]} 35. Nd2 {[%emt 0:00:33][%cal Od2e4]} (35. Qxf6 $2 Qg2#) 35... Re5 {[%emt 0:35:04]} 0-1

[Event "37th Belgrade Trophy 2024"]
[Site "Belgrade"]
[Date "2024.11.24"]
[Round "2.5"]
[White "Sutormin, Danila"]
[Black "Karaivanova, Petya"]
[Result "1-0"]
[ECO "D35"]
[WhiteElo "2394"]
[BlackElo "1939"]
[Annotator "TA"]
[PlyCount "77"]
[EventDate "2024.11.23"]
[EventCountry "SRB"]
[SourceTitle "playchess.com"]
[Source "ChessBase"]
[SourceQuality "1"]
[TimeControl "40/5400+30:900+30"]

{[%evp 9,77,0,17,14,15,6,11,0,16,12,63,59,96,99,96,102,109,109,97,98,105,104,131,105,142,114,117,107,133,137,133,133,136,110,118,120,114,102,148,125,125,136,135,120,321,294,291,276,387,324,353,255,351,358,597,603,583,512,601,589,508,483,649,654,692,653,674,670,906,895]} 1. d4 {[%emt 0:02:50]} d5 {[%emt 0:03:28]} 2. c4 {[%emt 0:00:17]} e6 {[%emt 0:00:03]} 3. Nc3 {[%emt 0:00:13]} Nf6 {[%emt 0:00:05]} 4. cxd5 {[%emt 0:00:09]} exd5 {[%emt 0:00:06]} 5. Bf4 {[%emt 0:00:09]} Bd6 {[%emt 0:00:53]} 6. Bxd6 {[%emt 0:00:14]} Qxd6 {[%emt 0:00:06]} 7. e3 {[%emt 0:00:08]} Bf5 {[%emt 0:08:12]} 8. Qf3 {[%emt 0:00:12]} Bg4 {[%emt 0:03:24]} 9. Qg3 {[%emt 0:00:06]} Qxg3 {[%emt 0:00:04]} (9... Qb6 $11 10. Bb5+ Nbd7 11. Bxd7+ Bxd7 12. Qe5+ Be6) 10. hxg3 $14 {[%emt 0:00:04][%cal Bh2g3,Bg3g4,Bg4g5][%mdl 32]} a6 {[%emt 0:08:21]} 11. f3 {[%emt 0:03:08]} Be6 {[%emt 0:00:28]} 12. g4 {[%emt 0:03:23]} Nbd7 {[%emt 0:01:46]} 13. g5 {[%emt 0:04:39]} Ng8 {[%emt 0:00:06]} 14. Nge2 {[%emt 0:01:22]} Ne7 {[%emt 0:04:31]} 15. Nf4 {[%emt 0:00:31]} O-O-O {[%emt 0:06:32]} 16. Bd3 {[%emt 0:08:35]} g6 {[%emt 0:00:44]} 17. O-O-O {[%emt 0:04:50]} c6 {[%emt 0:17:45]} 18. g4 {[%emt 0:00:21]} b5 {[%emt 0:02:50]} 19. Rh2 {[%emt 0:04:31]} c5 {[%emt 0:03:45]} 20. dxc5 {[%emt 0:02:47] White has more active pieces.} Nxc5 {[%emt 0:02:15]} 21. Bb1 {[%emt 0:01:03]} Kb8 {[%emt 0:05:59]} 22. b3 {[%emt 0:03:42]} Nc6 {[%emt 0:04:30]} 23. Nce2 {[%emt 0:02:44]} (23. Nfxd5 b4 24. Ne4 Rxd5 $15) 23... Rc8 {[%emt 0:05:51]} ({Black should play} 23... Nd7) 24. Kb2 {[%emt 0:02:12]} (24. Nxd5 Ne5 25. Kb2 Nxf3 $17) 24... Ne5 {[%emt 0:08:57]} 25. Nd4 {[%emt 0:00:09]} ({Inferior is} 25. Nxd5 Nxf3 26. Rf2 Nxg5 $17 (26... Bxg4 27. Nf6 $14)) 25... b4 {[%emt 0:00:23]} 26. Rdh1 {[%emt 0:06:54][%cal Bd1h1,Bh1h7,Bh7h8,Bh8e8,Be8e6,Be6d6,Bd6d5,Bd5g5,Bg5e5][%mdl 32]} Nb7 $2 {[%emt 0:10:39]} (26... Kc7 $16 27. Rh6 (27. Rxh7 Rxh7 28. Rxh7 Kd6 $16) 27... Kd6) 27. Rxh7 $18 {[%emt 0:03:39]} Rxh7 {[%emt 0:00:58]} 28. Rxh7 {[%emt 0:00:06]} Rc3 {[%emt 0:00:05]} (28... Nc5 {keeps fighting.} 29. Nfxe6 fxe6) 29. Rh8+ {[%emt 0:22:02]} Ka7 {[%emt 0:00:20]} 30. Re8 {[%emt 0:00:07]} Rxe3 {[%emt 0:01:03]} 31. Nfxe6 {[%emt 0:00:24]} fxe6 $2 {[%emt 0:00:14]} (31... Kb6 32. f4 Nxg4) 32. Rxe6 {[%emt 0:00:08]} Nd8 {[%emt 0:01:17]} 33. Rd6 {[%emt 0:03:39]} Ndf7 {[%emt 0:00:45]} 34. Rxd5 {[%emt 0:00:51]} Kb6 {[%emt 0:00:07]} 35. f4 {[%emt 0:04:18]} Nxg4 {[%emt 0:00:55]} 36. Bxg6 {[%emt 0:00:07]} Nxg5 {[%emt 0:00:25]} 37. Rxg5 {[%emt 0:01:46]} Nf2 {[%emt 0:00:15]} 38. Bc2 {[%emt 0:00:14]} Nh3 {[%emt 0:00:41]} 39. Re5 {[%emt 0:00:45]} 1-0